[Event "Titled Tuesday Blitz March 22 Early 2022"]
[White "Kotepalli, Sai Nirupama"]
[Black "Pinheiro, Iung Alicio de O."]
[WhiteFideId "5039444"]
[BlackFideId "2104350"]
[WhiteElo "2407"]
[BlackElo "2523"]
[Result "0-1"]
[Round "08"]
[TimeControl "180+1"]
[Date "2022.03.22"]
[WhiteClock "0:00:02"]
[BlackClock "0:00:08"]

1. e4 {[%clk 0:02:59]}  c5 {[%clk 0:02:57]} 2. Nf3 {[%clk 0:02:57]}  Nc6 {[%clk 0:02:57]} 3. d3 {[%clk 0:02:55]}  g6 {[%clk 0:02:48]} 4. g3 {[%clk 0:02:53]}  Bg7 {[%clk 0:02:48]} 5. Bg2 {[%clk 0:02:52]}  e5 {[%clk 0:02:41]} 6. O-O {[%clk 0:02:51]}  Nge7 {[%clk 0:02:41]} 7. c3 {[%clk 0:02:51]}  O-O {[%clk 0:02:41]} 8. a3 {[%clk 0:02:47]}  d6 {[%clk 0:02:37]} 9. b4 {[%clk 0:02:46]}  a6 {[%clk 0:02:37]} 10. Nh4 {[%clk 0:02:43]}  Rb8 {[%clk 0:02:22]} 11. Nd2 {[%clk 0:02:34]}  b5 {[%clk 0:02:21]} 12. Nb3 {[%clk 0:02:31]}  c4 {[%clk 0:02:01]} 13. dxc4 {[%clk 0:02:30]}  bxc4 {[%clk 0:02:02]} 14. Nd2 {[%clk 0:02:29]}  Be6 {[%clk 0:02:02]} 15. Qe2 {[%clk 0:02:29]}  Qc7 {[%clk 0:02:00]} 16. Ndf3 {[%clk 0:02:14]}  h6 {[%clk 0:01:56]} 17. Nd2 {[%clk 0:02:08]}  Nd4 {[%clk 0:01:36]} 18. Qd1 {[%clk 0:01:50]}  Rfd8 {[%clk 0:01:19]} 19. Bb2 {[%clk 0:01:34]}  Rbc8 {[%clk 0:01:07]} 20. Rc1 {[%clk 0:01:31]}  Nb3 {[%clk 0:00:49]} 21. Rc2 {[%clk 0:01:19]}  d5 {[%clk 0:00:47]} 22. exd5 {[%clk 0:01:16]}  Nxd5 {[%clk 0:00:47]} 23. Qe2 {[%clk 0:01:02]}  Nb6 {[%clk 0:00:43]} 24. Re1 {[%clk 0:00:53]}  Qd7 {[%clk 0:00:34]} 25. Nf1 {[%clk 0:00:37]}  Qd3 {[%clk 0:00:32]} 26. Bb7 {[%clk 0:00:32]}  Rc7 {[%clk 0:00:29]} 27. Bxa6 {[%clk 0:00:29]}  Na4 {[%clk 0:00:27]} 28. Ba1 {[%clk 0:00:21]}  Bg4 {[%clk 0:00:19]} 29. Qxg4 {[%clk 0:00:19]}  Qxc2 {[%clk 0:00:18]} 30. Bxc4 {[%clk 0:00:18]}  Nd4 {[%clk 0:00:14]} 31. Bxf7+ {[%clk 0:00:16]}  Rxf7 {[%clk 0:00:14]} 32. f4 {[%clk 0:00:09]}  Nxc3 {[%clk 0:00:11]} 33. Ne3 {[%clk 0:00:06]}  Nce2+ {[%clk 0:00:11]} 34. Kh1 {[%clk 0:00:05]}  Qe4+ {[%clk 0:00:11]} 35. Nhg2 {[%clk 0:00:05]}  Nc3 {[%clk 0:00:08]} 36. Bxc3 {[%clk 0:00:04]}  Nf3 {[%clk 0:00:09]} 37. Rf1 {[%clk 0:00:01]}  Nd2 {[%clk 0:00:08]} 38. fxe5 {[%clk 0:00:01]}  Nxf1 {[%clk 0:00:07]} 39. Qxe4 {[%clk 0:00:01]}  Nxe3 {[%clk 0:00:06]} 40. Nxe3 {[%clk 0:00:01]}  Re7 {[%clk 0:00:06]} 41. Kg2 {[%clk 0:00:02]}  Rde8 {[%clk 0:00:06]} 42. Nd5 {[%clk 0:00:01]}  Re6 {[%clk 0:00:06]} 43. Qc4 {[%clk 0:00:02]}  Kh7 {[%clk 0:00:06]} 44. Nc7 {[%clk 0:00:02]}  Rxe5 {[%clk 0:00:07]} 45. Nxe8 {[%clk 0:00:02]}  Rxe8 {[%clk 0:00:07]} 46. Qf7 {[%clk 0:00:02]}  Re2+ {[%clk 0:00:08]} 0-1


[Site "https://www.chess.com"]

[Event "Titled Tuesday Blitz March 22 Early 2022"]
[White "Kouskoutis, Georgios-Alexandros"]
[Black "Dreev, Aleksey"]
[WhiteFideId "4234049"]
[BlackFideId "4100107"]
[WhiteElo "2130"]
[BlackElo "2625"]
[Result "0-1"]
[Round "08"]
[TimeControl "180+1"]
[Date "2022.03.22"]
[WhiteClock "0:00:02"]
[BlackClock "0:00:11"]

1. c4 {[%clk 0:02:59]}  e6 {[%clk 0:02:59]} 2. g3 {[%clk 0:03:00]}  d5 {[%clk 0:02:59]} 3. Bg2 {[%clk 0:03:00]}  Nf6 {[%clk 0:02:59]} 4. Nf3 {[%clk 0:03:01]}  dxc4 {[%clk 0:02:59]} 5. Qa4+ {[%clk 0:02:58]}  Nbd7 {[%clk 0:02:58]} 6. Qxc4 {[%clk 0:02:47]}  a6 {[%clk 0:02:58]} 7. Qc2 {[%clk 0:02:45]}  Bd6 {[%clk 0:02:51]} 8. O-O {[%clk 0:02:37]}  O-O {[%clk 0:02:49]} 9. a4 {[%clk 0:02:32]}  c5 {[%clk 0:02:43]} 10. a5 {[%clk 0:02:06]}  Nd5 {[%clk 0:02:39]} 11. d3 {[%clk 0:02:01]}  Nb4 {[%clk 0:02:33]} 12. Qa4 {[%clk 0:01:53]}  Nf6 {[%clk 0:02:23]} 13. Nbd2 {[%clk 0:01:49]}  Bd7 {[%clk 0:02:21]} 14. Qb3 {[%clk 0:01:40]}  Bc6 {[%clk 0:02:22]} 15. Nc4 {[%clk 0:01:36]}  Bc7 {[%clk 0:02:21]} 16. Bd2 {[%clk 0:00:55]}  Qe7 {[%clk 0:02:21]} 17. Rfc1 {[%clk 0:00:54]}  Rfd8 {[%clk 0:02:20]} 18. Nfe5 {[%clk 0:00:27]}  Bxg2 {[%clk 0:02:17]} 19. Kxg2 {[%clk 0:00:28]}  Nfd5 {[%clk 0:02:14]} 20. Nf3 {[%clk 0:00:15]}  Rac8 {[%clk 0:02:11]} 21. e4 {[%clk 0:00:13]}  Nxd3 {[%clk 0:02:07]} 22. exd5 {[%clk 0:00:09]}  Nxc1 {[%clk 0:02:07]} 23. Rxc1 {[%clk 0:00:06]}  exd5 {[%clk 0:02:07]} 24. Ne3 {[%clk 0:00:06]}  Bb8 {[%clk 0:01:59]} 25. Be1 {[%clk 0:00:03]}  c4 {[%clk 0:01:51]} 26. Qc2 {[%clk 0:00:02]}  Ba7 {[%clk 0:01:43]} 27. Rd1 {[%clk 0:00:01]}  Bxe3 {[%clk 0:01:42]} 28. fxe3 {[%clk 0:00:02]}  Qxe3 {[%clk 0:01:41]} 29. Bf2 {[%clk 0:00:03]}  Qe4 {[%clk 0:01:40]} 30. Qxe4 {[%clk 0:00:02]}  dxe4 {[%clk 0:01:40]} 31. Nd4 {[%clk 0:00:03]}  Rd5 {[%clk 0:01:37]} 32. Re1 {[%clk 0:00:03]}  f5 {[%clk 0:01:36]} 33. g4 {[%clk 0:00:03]}  g6 {[%clk 0:01:35]} 34. gxf5 {[%clk 0:00:03]}  gxf5 {[%clk 0:01:35]} 35. Rc1 {[%clk 0:00:02]}  Rxa5 {[%clk 0:01:34]} 36. Kg3 {[%clk 0:00:01]}  Ra2 {[%clk 0:01:13]} 37. Kf4 {[%clk 0:00:02]}  Rxb2 {[%clk 0:01:11]} 38. Be3 {[%clk 0:00:03]}  Rxh2 {[%clk 0:01:02]} 39. Nxf5 {[%clk 0:00:03]}  Kf8 {[%clk 0:00:56]} 40. Kxe4 {[%clk 0:00:03]}  Rc6 {[%clk 0:00:40]} 41. Bf4 {[%clk 0:00:03]}  Re2+ {[%clk 0:00:38]} 42. Kf3 {[%clk 0:00:04]}  Re8 {[%clk 0:00:28]} 43. Nd6 {[%clk 0:00:03]}  Re7 {[%clk 0:00:18]} 44. Nxc4 {[%clk 0:00:02]}  Ke8 {[%clk 0:00:17]} 45. Nd6+ {[%clk 0:00:02]}  Kd7 {[%clk 0:00:17]} 46. Rd1 {[%clk 0:00:01]}  Ke6 {[%clk 0:00:17]} 47. Re1+ {[%clk 0:00:02]}  Kd7 {[%clk 0:00:16]} 48. Rxe7+ {[%clk 0:00:02]}  Kxe7 {[%clk 0:00:16]} 49. Nxb7 {[%clk 0:00:03]}  Kd7 {[%clk 0:00:15]} 50. Be3 {[%clk 0:00:03]}  Rf6+ {[%clk 0:00:14]} 51. Ke4 {[%clk 0:00:03]}  Re6+ {[%clk 0:00:14]} 52. Kd3 {[%clk 0:00:02]}  Rg6 {[%clk 0:00:14]} 53. Nc5+ {[%clk 0:00:02]}  Kc7 {[%clk 0:00:13]} 54. Ke4 {[%clk 0:00:02]}  h5 {[%clk 0:00:12]} 55. Kf3 {[%clk 0:00:02]}  h4 {[%clk 0:00:12]} 56. Bf4+ {[%clk 0:00:02]}  Kb6 {[%clk 0:00:11]} 57. Nd7+ {[%clk 0:00:02]}  Kb5 {[%clk 0:00:12]} 58. Ne5 {[%clk 0:00:02]}  Rg8 {[%clk 0:00:12]} 59. Ng4 {[%clk 0:00:02]}  a5 {[%clk 0:00:10]} 60. Ne3 {[%clk 0:00:02]}  a4 {[%clk 0:00:10]} 61. Nc2 {[%clk 0:00:02]}  h3 {[%clk 0:00:09]} 62. Bg3 {[%clk 0:00:03]}  Kc4 {[%clk 0:00:09]} 63. Na3+ {[%clk 0:00:02]}  Kb3 {[%clk 0:00:09]} 64. Nb5 {[%clk 0:00:01]}  a3 {[%clk 0:00:09]} 65. Nd4+ {[%clk 0:00:01]}  Kb2 {[%clk 0:00:09]} 66. Be5 {[%clk 0:00:02]}  a2 {[%clk 0:00:09]} 67. Ne2+ {[%clk 0:00:02]}  Kb3 {[%clk 0:00:08]} 68. Nc1+ {[%clk 0:00:02]}  Ka3 {[%clk 0:00:09]} 69. Bd6+ {[%clk 0:00:01]}  Kb2 {[%clk 0:00:09]} 70. Nxa2 {[%clk 0:00:01]}  Kxa2 {[%clk 0:00:09]} 71. Bg3 {[%clk 0:00:02]}  Kb3 {[%clk 0:00:10]} 72. Bf4 {[%clk 0:00:02]}  Kc2 {[%clk 0:00:10]} 73. Bg3 {[%clk 0:00:03]}  Kd3 {[%clk 0:00:10]} 74. Kf2 {[%clk 0:00:04]}  Ke4 {[%clk 0:00:10]} 75. Bc7 {[%clk 0:00:02]}  Rg2+ {[%clk 0:00:10]} 76. Kf1 {[%clk 0:00:02]}  Kf3 {[%clk 0:00:11]} 0-1


[Site "https://www.chess.com"]

[Event "Titled Tuesday Blitz March 22 Early 2022"]
[White "Kowalczyk, Pawel"]
[Black "Mkrtchyan, Mariam"]
[WhiteFideId "1130641"]
[BlackFideId "13310828"]
[WhiteElo "2344"]
[BlackElo "1984"]
[Result "0-1"]
[Round "08"]
[TimeControl "180+1"]
[Date "2022.03.22"]
[WhiteClock "0:00:42"]
[BlackClock "0:00:17"]

1. e4 {[%clk 0:03:00]}  c6 {[%clk 0:02:59]} 2. Nc3 {[%clk 0:03:00]}  d5 {[%clk 0:03:00]} 3. Nf3 {[%clk 0:03:00]}  dxe4 {[%clk 0:03:00]} 4. Nxe4 {[%clk 0:03:01]}  Nf6 {[%clk 0:03:01]} 5. Ng3 {[%clk 0:03:00]}  h5 {[%clk 0:03:00]} 6. h3 {[%clk 0:02:59]}  g6 {[%clk 0:02:59]} 7. Bc4 {[%clk 0:02:58]}  e6 {[%clk 0:02:55]} 8. d4 {[%clk 0:02:56]}  Bg7 {[%clk 0:02:54]} 9. Bg5 {[%clk 0:02:54]}  b6 {[%clk 0:02:53]} 10. Qe2 {[%clk 0:02:54]}  O-O {[%clk 0:02:52]} 11. O-O-O {[%clk 0:02:53]}  Bb7 {[%clk 0:02:52]} 12. Ne5 {[%clk 0:02:53]}  Qc7 {[%clk 0:02:45]} 13. Rhe1 {[%clk 0:02:32]}  Nbd7 {[%clk 0:02:29]} 14. f4 {[%clk 0:02:16]}  Nd5 {[%clk 0:02:11]} 15. Kb1 {[%clk 0:02:04]}  Rfe8 {[%clk 0:02:00]} 16. Rd3 {[%clk 0:01:43]}  Nf8 {[%clk 0:01:42]} 17. Nxh5 {[%clk 0:01:42]}  gxh5 {[%clk 0:01:37]} 18. Qxh5 {[%clk 0:01:42]}  f6 {[%clk 0:01:16]} 19. Bh6 {[%clk 0:01:43]}  fxe5 {[%clk 0:01:15]} 20. Rg3 {[%clk 0:01:42]}  Re7 {[%clk 0:01:14]} 21. Rxe5 {[%clk 0:01:40]}  Nh7 {[%clk 0:00:48]} 22. Reg5 {[%clk 0:01:28]}  Nxg5 {[%clk 0:00:44]} 23. Rxg5 {[%clk 0:01:21]}  Rf8 {[%clk 0:00:35]} 24. g3 {[%clk 0:01:17]}  c5 {[%clk 0:00:30]} 25. Bd3 {[%clk 0:01:18]}  Nf6 {[%clk 0:00:24]} 26. Qg6 {[%clk 0:01:10]}  c4 {[%clk 0:00:24]} 27. Be2 {[%clk 0:01:03]}  Be4 {[%clk 0:00:23]} 28. f5 {[%clk 0:00:50]}  Bxf5 {[%clk 0:00:23]} 29. Rxf5 {[%clk 0:00:47]}  exf5 {[%clk 0:00:23]} 30. Bd1 {[%clk 0:00:42]}  Re1 {[%clk 0:00:19]} 31. Kc1 {[%clk 0:00:42]}  Qf7 {[%clk 0:00:19]} 32. Qg5 {[%clk 0:00:42]}  Ne4 {[%clk 0:00:17]} 0-1


[Site "https://www.chess.com"]

[Event "Titled Tuesday Blitz March 22 Early 2022"]
[White "Kozak, Antoni"]
[Black "Shtyka, Sergey"]
[WhiteFideId "21832030"]
[BlackFideId "4138465"]
[WhiteElo "2236"]
[BlackElo "2014"]
[Result "1-0"]
[Round "08"]
[TimeControl "180+1"]
[Date "2022.03.22"]
[WhiteClock "0:00:05"]
[BlackClock "0:00:05"]

1. e4 {[%clk 0:03:00]}  c5 {[%clk 0:02:59]} 2. Nf3 {[%clk 0:02:59]}  d6 {[%clk 0:02:59]} 3. Nc3 {[%clk 0:02:59]}  Nc6 {[%clk 0:02:57]} 4. Bb5 {[%clk 0:02:58]}  Bd7 {[%clk 0:02:57]} 5. O-O {[%clk 0:02:58]}  g6 {[%clk 0:02:56]} 6. d3 {[%clk 0:02:55]}  Bg7 {[%clk 0:02:55]} 7. Bf4 {[%clk 0:02:53]}  Nf6 {[%clk 0:02:55]} 8. Re1 {[%clk 0:02:52]}  O-O {[%clk 0:02:55]} 9. h3 {[%clk 0:02:52]}  e5 {[%clk 0:02:54]} 10. Bg5 {[%clk 0:02:41]}  h6 {[%clk 0:02:53]} 11. Bxf6 {[%clk 0:02:41]}  Bxf6 {[%clk 0:02:50]} 12. Nd5 {[%clk 0:02:40]}  Bg7 {[%clk 0:02:50]} 13. a4 {[%clk 0:02:32]}  f5 {[%clk 0:02:48]} 14. Nd2 {[%clk 0:02:25]}  f4 {[%clk 0:02:42]} 15. c3 {[%clk 0:02:01]}  Be6 {[%clk 0:02:39]} 16. Bc4 {[%clk 0:01:58]}  Kh7 {[%clk 0:02:36]} 17. b4 {[%clk 0:01:52]}  cxb4 {[%clk 0:02:33]} 18. Nxb4 {[%clk 0:01:50]}  Nxb4 {[%clk 0:02:24]} 19. cxb4 {[%clk 0:01:42]}  Bxc4 {[%clk 0:02:19]} 20. dxc4 {[%clk 0:01:36]}  Rc8 {[%clk 0:02:13]} 21. Ra3 {[%clk 0:01:34]}  Qb6 {[%clk 0:02:08]} 22. Qb1 {[%clk 0:01:29]}  a5 {[%clk 0:01:51]} 23. b5 {[%clk 0:01:24]}  h5 {[%clk 0:01:44]} 24. Rd3 {[%clk 0:01:08]}  g5 {[%clk 0:01:41]} 25. Qd1 {[%clk 0:01:02]}  Kg6 {[%clk 0:01:39]} 26. Nb3 {[%clk 0:00:53]}  Rf6 {[%clk 0:01:32]} 27. Rc3 {[%clk 0:00:33]}  Bf8 {[%clk 0:00:58]} 28. Qe2 {[%clk 0:00:20]}  Be7 {[%clk 0:00:54]} 29. Rd1 {[%clk 0:00:19]}  Qc7 {[%clk 0:00:51]} 30. Rd5 {[%clk 0:00:19]}  b6 {[%clk 0:00:50]} 31. Nd2 {[%clk 0:00:16]}  Qd7 {[%clk 0:00:50]} 32. Nf1 {[%clk 0:00:15]}  g4 {[%clk 0:00:46]} 33. Nh2 {[%clk 0:00:15]}  Kg5 {[%clk 0:00:46]} 34. hxg4 {[%clk 0:00:10]}  hxg4 {[%clk 0:00:46]} 35. f3 {[%clk 0:00:10]}  g3 {[%clk 0:00:40]} 36. Ng4 {[%clk 0:00:10]}  Re6 {[%clk 0:00:36]} 37. Kf1 {[%clk 0:00:10]}  Rh8 {[%clk 0:00:33]} 38. Ke1 {[%clk 0:00:10]}  Rh1+ {[%clk 0:00:33]} 39. Kd2 {[%clk 0:00:11]}  Qc7 {[%clk 0:00:29]} 40. Rc1 {[%clk 0:00:10]}  Rxc1 {[%clk 0:00:27]} 41. Kxc1 {[%clk 0:00:11]}  Rg6 {[%clk 0:00:22]} 42. c5 {[%clk 0:00:11]}  bxc5 {[%clk 0:00:20]} 43. Qe1 {[%clk 0:00:09]}  Rg8 {[%clk 0:00:19]} 44. Qh1 {[%clk 0:00:08]}  Bf8 {[%clk 0:00:13]} 45. Qh3 {[%clk 0:00:07]}  Qg7 {[%clk 0:00:11]} 46. Nxe5 {[%clk 0:00:05]}  dxe5 {[%clk 0:00:10]} 47. Qf5+ {[%clk 0:00:05]}  Kh4 {[%clk 0:00:08]} 48. Rxe5 {[%clk 0:00:05]}  Rh8 {[%clk 0:00:05]} 49. Qh3# {[%clk 0:00:05]} 1-0


[Site "https://www.chess.com"]

[Event "Titled Tuesday Blitz March 22 Early 2022"]
[White "Krysa, Leandro"]
[Black "Dixit, Nikhil"]
[WhiteFideId "116807"]
[BlackFideId "5059534"]
[WhiteElo "2490"]
[BlackElo "2223"]
[Result "1-0"]
[Round "08"]
[TimeControl "180+1"]
[Date "2022.03.22"]
[WhiteClock "0:01:35"]
[BlackClock "0:00:36"]

1. e4 {[%clk 0:03:00]}  c5 {[%clk 0:02:55]} 2. Nf3 {[%clk 0:03:00]}  Nc6 {[%clk 0:02:56]} 3. d4 {[%clk 0:02:59]}  cxd4 {[%clk 0:02:56]} 4. Nxd4 {[%clk 0:03:00]}  Nf6 {[%clk 0:02:55]} 5. Nc3 {[%clk 0:03:00]}  e5 {[%clk 0:02:55]} 6. Ndb5 {[%clk 0:02:58]}  d6 {[%clk 0:02:53]} 7. Bg5 {[%clk 0:02:55]}  a6 {[%clk 0:02:51]} 8. Na3 {[%clk 0:02:55]}  b5 {[%clk 0:02:50]} 9. Nab1 {[%clk 0:02:51]}  Be7 {[%clk 0:02:43]} 10. Bxf6 {[%clk 0:02:43]}  Bxf6 {[%clk 0:02:42]} 11. a4 {[%clk 0:02:44]}  b4 {[%clk 0:02:38]} 12. Nd5 {[%clk 0:02:44]}  O-O {[%clk 0:02:36]} 13. Be2 {[%clk 0:02:40]}  Be6 {[%clk 0:02:29]} 14. O-O {[%clk 0:02:34]}  Bxd5 {[%clk 0:02:09]} 15. Qxd5 {[%clk 0:02:29]}  Nd4 {[%clk 0:02:07]} 16. Bd3 {[%clk 0:02:29]}  Rc8 {[%clk 0:02:03]} 17. c3 {[%clk 0:02:25]}  Rc5 {[%clk 0:01:59]} 18. Qb7 {[%clk 0:02:19]}  Nb3 {[%clk 0:01:43]} 19. Ra2 {[%clk 0:02:19]}  Na5 {[%clk 0:01:39]} 20. Qxa6 {[%clk 0:02:13]}  b3 {[%clk 0:01:38]} 21. Ra3 {[%clk 0:02:07]}  Qc7 {[%clk 0:01:34]} 22. Nd2 {[%clk 0:02:00]}  Rc6 {[%clk 0:01:27]} 23. Qb5 {[%clk 0:01:52]}  Rb8 {[%clk 0:01:12]} 24. Rfa1 {[%clk 0:01:47]}  g6 {[%clk 0:00:47]} 25. Bf1 {[%clk 0:01:44]}  Rxb5 {[%clk 0:00:44]} 26. axb5 {[%clk 0:01:45]}  Rc5 {[%clk 0:00:41]} 27. Rxa5 {[%clk 0:01:45]}  d5 {[%clk 0:00:40]} 28. Nxb3 {[%clk 0:01:42]}  dxe4 {[%clk 0:00:39]} 29. b6 {[%clk 0:01:36]}  Qxb6 {[%clk 0:00:39]} 30. Nxc5 {[%clk 0:01:36]}  Qxb2 {[%clk 0:00:38]} 31. Nxe4 {[%clk 0:01:36]}  Bh4 {[%clk 0:00:36]} 32. g3 {[%clk 0:01:35]} 1-0


[Site "https://www.chess.com"]

[Event "Titled Tuesday Blitz March 22 Early 2022"]
[White "Kulkarni, Rakesh"]
[Black "Gabrielian, Artur"]
[WhiteFideId "5037077"]
[BlackFideId "4131002"]
[WhiteElo "2246"]
[BlackElo "2440"]
[Result "0-1"]
[Round "08"]
[TimeControl "180+1"]
[Date "2022.03.22"]
[WhiteClock "0:00:02"]
[BlackClock "0:00:14"]

1. e4 {[%clk 0:03:00]}  c5 {[%clk 0:02:59]} 2. c3 {[%clk 0:03:00]}  Nf6 {[%clk 0:02:57]} 3. e5 {[%clk 0:03:00]}  Nd5 {[%clk 0:02:58]} 4. d4 {[%clk 0:03:00]}  cxd4 {[%clk 0:02:58]} 5. Nf3 {[%clk 0:03:01]}  d6 {[%clk 0:02:59]} 6. cxd4 {[%clk 0:03:00]}  Nc6 {[%clk 0:02:59]} 7. Bc4 {[%clk 0:03:01]}  Nb6 {[%clk 0:02:58]} 8. Bb3 {[%clk 0:02:48]}  dxe5 {[%clk 0:02:58]} 9. d5 {[%clk 0:02:48]}  Na5 {[%clk 0:02:52]} 10. Nc3 {[%clk 0:02:49]}  Nxb3 {[%clk 0:02:47]} 11. Qxb3 {[%clk 0:02:50]}  e6 {[%clk 0:02:45]} 12. dxe6 {[%clk 0:02:43]}  Bxe6 {[%clk 0:02:45]} 13. Qb5+ {[%clk 0:02:43]}  Qd7 {[%clk 0:02:45]} 14. Nxe5 {[%clk 0:02:42]}  Qxb5 {[%clk 0:02:43]} 15. Nxb5 {[%clk 0:02:42]}  Nd5 {[%clk 0:02:32]} 16. Bd2 {[%clk 0:02:35]}  Be7 {[%clk 0:02:00]} 17. Rc1 {[%clk 0:02:20]}  O-O {[%clk 0:01:57]} 18. O-O {[%clk 0:02:11]}  Rfd8 {[%clk 0:01:50]} 19. Rfd1 {[%clk 0:01:57]}  Bf6 {[%clk 0:01:47]} 20. f4 {[%clk 0:01:20]}  g5 {[%clk 0:01:10]} 21. g3 {[%clk 0:01:02]}  gxf4 {[%clk 0:01:08]} 22. Bxf4 {[%clk 0:01:00]}  Nxf4 {[%clk 0:00:58]} 23. gxf4 {[%clk 0:01:01]}  Rxd1+ {[%clk 0:00:57]} 24. Rxd1 {[%clk 0:01:02]}  Bxa2 {[%clk 0:00:46]} 25. Rd7 {[%clk 0:00:54]}  Rc8 {[%clk 0:00:23]} 26. Rxb7 {[%clk 0:00:49]}  Rc1+ {[%clk 0:00:22]} 27. Kf2 {[%clk 0:00:50]}  Rc2+ {[%clk 0:00:20]} 28. Kg3 {[%clk 0:00:49]}  Rxb2 {[%clk 0:00:14]} 29. Rxa7 {[%clk 0:00:45]}  Bd5 {[%clk 0:00:13]} 30. Nd6 {[%clk 0:00:38]}  Rb3+ {[%clk 0:00:10]} 31. Kf2 {[%clk 0:00:24]}  Rb2+ {[%clk 0:00:10]} 32. Kg3 {[%clk 0:00:23]}  Bxe5 {[%clk 0:00:07]} 33. fxe5 {[%clk 0:00:23]}  Rb3+ {[%clk 0:00:07]} 34. Kf4 {[%clk 0:00:22]}  Be6 {[%clk 0:00:05]} 35. Ne8 {[%clk 0:00:16]}  h6 {[%clk 0:00:04]} 36. Nf6+ {[%clk 0:00:15]}  Kg7 {[%clk 0:00:04]} 37. Ra8 {[%clk 0:00:16]}  Rb4+ {[%clk 0:00:04]} 38. Kf3 {[%clk 0:00:15]}  Kg6 {[%clk 0:00:05]} 39. Rg8+ {[%clk 0:00:10]}  Kf5 {[%clk 0:00:05]} 40. Rh8 {[%clk 0:00:10]}  Rb3+ {[%clk 0:00:04]} 41. Ke2 {[%clk 0:00:10]}  Rb2+ {[%clk 0:00:03]} 42. Kf3 {[%clk 0:00:09]}  Rxh2 {[%clk 0:00:04]} 43. Ne8 {[%clk 0:00:07]}  Rh3+ {[%clk 0:00:04]} 44. Kg2 {[%clk 0:00:07]}  Kxe5 {[%clk 0:00:04]} 45. Ng7 {[%clk 0:00:07]}  Rh4 {[%clk 0:00:03]} 46. Kf2 {[%clk 0:00:05]}  Rf4+ {[%clk 0:00:03]} 47. Ke3 {[%clk 0:00:05]}  Re4+ {[%clk 0:00:04]} 48. Kf3 {[%clk 0:00:05]}  Rf4+ {[%clk 0:00:04]} 49. Ke3 {[%clk 0:00:06]}  Rf6 {[%clk 0:00:04]} 50. Ne8 {[%clk 0:00:04]}  Rg6 {[%clk 0:00:05]} 51. Nc7 {[%clk 0:00:04]}  f5 {[%clk 0:00:04]} 52. Nb5 {[%clk 0:00:03]}  f4+ {[%clk 0:00:05]} 53. Kf2 {[%clk 0:00:03]}  Bd5 {[%clk 0:00:05]} 54. Nc3 {[%clk 0:00:04]}  Bc6 {[%clk 0:00:03]} 55. Ne2 {[%clk 0:00:02]}  Rg2+ {[%clk 0:00:03]} 56. Kf1 {[%clk 0:00:02]}  Rg6 {[%clk 0:00:04]} 57. Rf8 {[%clk 0:00:01]}  f3 {[%clk 0:00:04]} 58. Nc3 {[%clk 0:00:01]}  Kd4 {[%clk 0:00:05]} 59. Nd1 {[%clk 0:00:01]}  Bb5+ {[%clk 0:00:05]} 60. Kf2 {[%clk 0:00:02]}  Be2 {[%clk 0:00:06]} 61. Rd8+ {[%clk 0:00:01]}  Ke4 {[%clk 0:00:07]} 62. Ne3 {[%clk 0:00:02]}  Kf4 {[%clk 0:00:07]} 63. Rf8+ {[%clk 0:00:02]}  Ke5 {[%clk 0:00:07]} 64. Re8+ {[%clk 0:00:02]}  Kf6 {[%clk 0:00:07]} 65. Rf8+ {[%clk 0:00:03]}  Kg5 {[%clk 0:00:08]} 66. Rf5+ {[%clk 0:00:02]}  Kh4 {[%clk 0:00:08]} 67. Rf4+ {[%clk 0:00:02]}  Kh3 {[%clk 0:00:08]} 68. Rf5 {[%clk 0:00:03]}  Rg5 {[%clk 0:00:09]} 69. Rf6 {[%clk 0:00:02]}  h5 {[%clk 0:00:09]} 70. Rf4 {[%clk 0:00:02]}  h4 {[%clk 0:00:10]} 71. Rf6 {[%clk 0:00:03]}  Rg3 {[%clk 0:00:09]} 72. Rf4 {[%clk 0:00:02]}  Rg5 {[%clk 0:00:09]} 73. Rf6 {[%clk 0:00:03]}  Kh2 {[%clk 0:00:10]} 74. Rf4 {[%clk 0:00:03]}  h3 {[%clk 0:00:11]} 75. Rf6 {[%clk 0:00:03]}  Rg2+ {[%clk 0:00:11]} 76. Nxg2 {[%clk 0:00:03]}  fxg2 {[%clk 0:00:11]} 77. Rg6 {[%clk 0:00:03]}  Bd3 {[%clk 0:00:12]} 78. Rg3 {[%clk 0:00:03]}  Be4 {[%clk 0:00:12]} 79. Rg6 {[%clk 0:00:03]}  Kh1 {[%clk 0:00:13]} 80. Rg3 {[%clk 0:00:02]}  h2 {[%clk 0:00:13]} 81. Rxg2 {[%clk 0:00:02]}  Bxg2 {[%clk 0:00:13]} 82. Ke1 {[%clk 0:00:02]}  Kg1 {[%clk 0:00:13]} 83. Ke2 {[%clk 0:00:02]}  h1=Q {[%clk 0:00:14]} 0-1


[Site "https://www.chess.com"]

[Event "Titled Tuesday Blitz March 22 Early 2022"]
[White "Ladan, Nicholas"]
[Black "Van den Dikkenberg, Erik"]
[WhiteFideId "30918855"]
[BlackFideId "1005880"]
[WhiteElo "2167"]
[BlackElo "2118"]
[Result "1-0"]
[Round "08"]
[TimeControl "180+1"]
[Date "2022.03.22"]
[WhiteClock "0:01:20"]
[BlackClock "0:01:59"]

1. d4 {[%clk 0:03:00]}  Nf6 {[%clk 0:02:59]} 2. Bf4 {[%clk 0:03:01]}  g6 {[%clk 0:03:00]} 3. Nf3 {[%clk 0:03:01]}  d5 {[%clk 0:03:01]} 4. Nc3 {[%clk 0:03:01]}  Bg7 {[%clk 0:03:01]} 5. Qd2 {[%clk 0:03:01]}  O-O {[%clk 0:03:02]} 6. Ne5 {[%clk 0:03:01]}  Nbd7 {[%clk 0:02:53]} 7. e3 {[%clk 0:02:57]}  c6 {[%clk 0:02:52]} 8. h4 {[%clk 0:02:55]}  h5 {[%clk 0:02:51]} 9. f3 {[%clk 0:02:53]}  Nxe5 {[%clk 0:02:49]} 10. dxe5 {[%clk 0:02:49]}  Nd7 {[%clk 0:02:48]} 11. e6 {[%clk 0:02:44]}  fxe6 {[%clk 0:02:47]} 12. Bd3 {[%clk 0:02:44]}  e5 {[%clk 0:02:40]} 13. Bg5 {[%clk 0:02:39]}  d4 {[%clk 0:02:22]} 14. Ne4 {[%clk 0:02:11]}  Nf6 {[%clk 0:02:20]} 15. O-O-O {[%clk 0:02:08]}  Bf5 {[%clk 0:02:17]} 16. exd4 {[%clk 0:01:41]}  Qxd4 {[%clk 0:02:08]} 17. Be3 {[%clk 0:01:32]}  Qa4 {[%clk 0:02:04]} 18. Qc3 {[%clk 0:01:21]}  Qxa2 {[%clk 0:01:59]} 19. Bc4+ {[%clk 0:01:20]} 1-0


[Site "https://www.chess.com"]

[Event "Titled Tuesday Blitz March 22 Early 2022"]
[White "Le Ruyet, Leopold"]
[Black "Murzin, Volodar"]
[WhiteFideId "645923"]
[BlackFideId "44155573"]
[WhiteElo "2276"]
[BlackElo "2585"]
[Result "0-1"]
[Round "08"]
[TimeControl "180+1"]
[Date "2022.03.22"]
[WhiteClock "0:00:13"]
[BlackClock "0:01:00"]

1. d4 {[%clk 0:02:51]}  d5 {[%clk 0:02:57]} 2. c4 {[%clk 0:02:50]}  e6 {[%clk 0:02:56]} 3. Nc3 {[%clk 0:02:49]}  c6 {[%clk 0:02:56]} 4. cxd5 {[%clk 0:02:45]}  cxd5 {[%clk 0:02:52]} 5. Bf4 {[%clk 0:02:44]}  Bd6 {[%clk 0:02:52]} 6. Bxd6 {[%clk 0:02:43]}  Qxd6 {[%clk 0:02:53]} 7. e3 {[%clk 0:02:43]}  Ne7 {[%clk 0:02:53]} 8. f4 {[%clk 0:02:39]}  Nbc6 {[%clk 0:02:52]} 9. Nf3 {[%clk 0:02:39]}  f6 {[%clk 0:02:52]} 10. a3 {[%clk 0:02:32]}  Bd7 {[%clk 0:02:50]} 11. Bd3 {[%clk 0:02:24]}  O-O {[%clk 0:02:49]} 12. O-O {[%clk 0:02:24]}  Be8 {[%clk 0:02:49]} 13. Nh4 {[%clk 0:02:06]}  Rc8 {[%clk 0:02:19]} 14. Rc1 {[%clk 0:01:49]}  Na5 {[%clk 0:01:58]} 15. f5 {[%clk 0:01:27]}  Nc4 {[%clk 0:01:50]} 16. Qe2 {[%clk 0:01:22]}  Bf7 {[%clk 0:01:40]} 17. Kh1 {[%clk 0:01:08]}  e5 {[%clk 0:01:35]} 18. e4 {[%clk 0:01:04]}  exd4 {[%clk 0:01:32]} 19. Nxd5 {[%clk 0:01:00]}  Nxd5 {[%clk 0:01:29]} 20. Bxc4 {[%clk 0:00:51]}  Rxc4 {[%clk 0:01:26]} 21. exd5 {[%clk 0:00:24]}  d3 {[%clk 0:01:16]} 22. Qf2 {[%clk 0:00:18]}  Qxd5 {[%clk 0:01:16]} 23. Rxc4 {[%clk 0:00:17]}  Qxc4 {[%clk 0:01:14]} 24. h3 {[%clk 0:00:18]}  Re8 {[%clk 0:01:13]} 25. Rd1 {[%clk 0:00:17]}  Re2 {[%clk 0:01:11]} 26. Qg3 {[%clk 0:00:17]}  d2 {[%clk 0:01:03]} 27. Qb8+ {[%clk 0:00:17]}  Re8 {[%clk 0:01:03]} 28. Qg3 {[%clk 0:00:17]}  Qc2 {[%clk 0:01:01]} 29. Qf3 {[%clk 0:00:13]}  Qxd1+ {[%clk 0:01:00]} 0-1


[Site "https://www.chess.com"]